{"text_format":"3","workbook":"xlsx","n_sheets":3,"sheets":["Inwentarz spadkowy","Aktywa spadkowe","Zobowiązania spadkowe"],"not_rendered":{"defined_names":1},"read":"whole","date_system":"1900"}

{"sheet":"Inwentarz spadkowy","index":0,"n_rows":45,"n_cols":35,"rows_kept":45,"merged":[[0,1,0,30],[0,31,0,39],[1,1,5,39],[6,1,6,6],[6,7,6,39],[7,1,7,6],[7,7,7,39],[9,1,9,6],[9,7,9,39],[10,1,10,6],[10,7,10,39],[11,1,11,6],[11,7,11,20],[11,21,11,26],[11,27,11,30],[11,31,11,33],[11,34,11,39],[12,1,12,6],[12,7,12,20],[12,21,12,26],[13,1,13,6],[13,7,13,20],[13,21,13,26],[14,1,14,6],[14,7,14,20],[14,21,14,26],[15,1,15,6],[17,1,17,39],[18,1,18,6],[18,7,18,12],[18,13,18,15],[18,16,18,18],[18,19,18,26],[18,27,18,31],[18,32,18,39],[19,1,19,6],[19,7,19,12],[19,13,19,15],[19,16,19,18],[19,19,19,26],[19,27,19,31],[19,32,19,39],[20,1,20,6],[20,7,20,12],[20,13,20,15],[20,16,20,18],[20,19,20,26],[20,27,20,31],[20,32,20,39],[21,1,21,6],[21,7,21,12],[21,13,21,15],[21,16,21,18],[21,19,21,26],[21,27,21,31],[21,32,21,39],[22,1,22,6],[22,7,22,12],[22,13,22,15],[22,16,22,18],[22,19,22,26],[22,27,22,31],[22,32,22,39],[23,1,23,6],[23,7,23,12],[23,13,23,15],[23,16,23,18],[23,19,23,26],[23,27,23,31],[23,32,23,39],[25,1,25,39],[26,1,26,6],[26,7,26,12],[26,13,26,18],[26,19,26,26],[26,27,26,31],[26,32,26,39],[27,1,27,6],[27,7,27,12],[27,13,27,18],[27,19,27,26],[27,27,27,31],[27,32,27,39],[28,1,28,6],[28,7,28,12],[28,13,28,18],[28,19,28,26],[28,27,28,31],[28,32,28,39],[29,1,29,6],[29,7,29,12],[29,13,29,18],[29,19,29,26],[29,27,29,31],[29,32,29,39],[30,1,30,6],[30,7,30,12],[30,13,30,18],[30,19,30,26],[30,27,30,31],[30,32,30,39],[31,1,31,6],[31,7,31,12],[31,13,31,18],[31,19,31,26],[31,27,31,31],[31,32,31,39],[33,1,33,12],[33,14,33,39],[34,1,34,12],[34,14,34,21],[34,22,34,25],[34,26,34,33],[34,34,34,39],[35,2,35,12],[35,14,35,21],[35,22,35,25],[35,26,35,33],[35,34,35,39],[36,2,36,12],[36,14,36,21],[36,22,36,25],[36,26,36,33],[36,34,36,39],[37,2,37,12],[37,14,37,21],[37,22,37,25],[37,26,37,33],[37,34,37,39],[38,2,38,12],[38,14,38,21],[38,22,38,25],[38,26,38,33],[38,34,38,39],[39,2,39,12],[39,14,39,21],[39,22,39,25],[39,26,39,33],[39,34,39,39],[40,2,40,12],[40,14,40,21],[40,22,40,25],[40,26,40,33],[40,34,40,39],[41,2,41,12],[41,14,41,21],[41,22,41,25],[41,26,41,33],[41,34,41,39],[42,2,42,12],[42,14,42,21],[42,22,42,25],[42,26,42,33],[42,34,42,39],[43,2,43,12],[43,14,43,21],[43,22,43,25],[43,26,43,33],[43,34,43,39],[44,2,44,12],[44,14,44,21],[44,22,44,25],[44,26,44,33],[44,34,44,39]]}
[]
[null,"Inwentarz spadkowy"]
[]
[]
[]
[]
[null,"Imię i nazwisko wykonawcy(ów)",{"$nulls":5},"Szymon Michalski"]
[null,"Informacje kontaktowe",{"$nulls":5},"ul. Podobna 4567, 42-115 ŚL Sosnowiec"]
[]
[null,"Imię zmarłego",{"$nulls":5},"Artur Wieczorek"]
[null,"Ulica",{"$nulls":5},"ul. Podobna 6789"]
[null,"Miasto",{"$nulls":5},"Sosnowiec",{"$nulls":13},"Województwo",{"$nulls":5},"ŚL",{"$nulls":3},"Kod pocztowy",null,null,98052]
[null,"PESEL",{"$nulls":5},"AAA-GG-SSSS",{"$nulls":13},"Zawód",{"$nulls":5},"Dentysta"]
[null,"Data urodzenia:",{"$nulls":5},"1965-12-08",{"$nulls":13},"Miejsce urodzenia",{"$nulls":5},"ŚL"]
[null,"Data śmierci",{"$nulls":5},{"$f":"TODAY()-3","v":"2022-05-09"},{"$nulls":13},"Miejsce śmierci",{"$nulls":5},"ŚL"]
[null,"Informacje dodatkowe"]
[]
[null,"  Współmałżonek, dzieci i inne osoby na utrzymaniu"]
[null,"Imię i nazwisko",{"$nulls":5},"Relacja",{"$nulls":5},"Osoba na utrzymaniu",null,null,"Wiek",null,null,"Adres",{"$nulls":7},"Numer telefonu",{"$nulls":4},"E-mail"]
[null,"Piotr Kucharski",{"$nulls":5},"Przedstawiciel osobisty",{"$nulls":5},"Nie",null,null,30]
[null,"Zofia Wiśniewska",{"$nulls":5},"Małżonek",{"$nulls":5},"Tak",null,null,35]
[null,"Marek Pawłowski",{"$nulls":5},"Dziecko",{"$nulls":5},"Tak",null,null,12]
[]
[]
[]
[null,"Profesjonalni doradcy"]
[null,"Typ doradcy",{"$nulls":5},"Osoba do kontaktu",{"$nulls":5},"Firma",{"$nulls":5},"Adres",{"$nulls":7},"Numer telefonu",{"$nulls":4},"E-mail"]
[null,"Księgowy"]
[null,"Prawnik/notariusz"]
[null,"Inne"]
[]
[]
[]
[null,"  Lista kontrolna spadkowa",{"$nulls":12},"  Inwentarze spadkowe"]
[null,"    Elementy listy kontrolnej",{"$nulls":12},"Aktywy spadkowe",{"$nulls":7},"Wartość (zł)",{"$nulls":3},"Zobowiązania spadkowe",{"$nulls":7},"Wartość (zł)"]
[null,"✔","Ostatnia wola, testament lub jakiekolwiek inne dokumenty",{"$nulls":11},{"$f":"'Aktywa spadkowe'!B12","v":"Konta bankowe"},{"$nulls":7},{"$f":"'Aktywa spadkowe'!G20","v":{"v":0,"d":"0.00 zł"}},{"$nulls":3},{"$f":"'Zobowiązania spadkowe'!B11","v":"Kredyty hipoteczne"},{"$nulls":7},{"$f":"'Zobowiązania spadkowe'!G18","v":{"v":0,"d":"0.00 zł"}}]
[null,"✔","Umowa najmu sejfu i klucze",{"$nulls":11},{"$f":"'Aktywa spadkowe'!B22","v":"Inwestycje osobiste"},{"$nulls":7},{"$f":"'Aktywa spadkowe'!G30","v":{"v":0,"d":"0.00 zł"}},{"$nulls":3},{"$f":"'Zobowiązania spadkowe'!B21","v":"Pożyczki osobiste i linie kredytowe"},{"$nulls":7},{"$f":"'Zobowiązania spadkowe'!G28","v":{"v":0,"d":"0.00 zł"}}]
[null,"✖","Hasła dla komputerów i kont online",{"$nulls":11},{"$f":"'Aktywa spadkowe'!B32","v":"Interesy biznesowe"},{"$nulls":7},{"$f":"'Aktywa spadkowe'!G40","v":{"v":0,"d":"0.00 zł"}},{"$nulls":3},{"$f":"'Zobowiązania spadkowe'!B31","v":"Interesy biznesowe"},{"$nulls":7},{"$f":"'Zobowiązania spadkowe'!G38","v":{"v":0,"d":"0.00 zł"}}]
[null,"✔","Żywe umowy powiernicze",{"$nulls":11},{"$f":"'Aktywa spadkowe'!B42","v":"Nieruchomości"},{"$nulls":7},{"$f":"'Aktywa spadkowe'!G50","v":{"v":0,"d":"0.00 zł"}},{"$nulls":3},{"$f":"'Zobowiązania spadkowe'!B41","v":"Karty kredytowe"},{"$nulls":7},{"$f":"'Zobowiązania spadkowe'!G48","v":{"v":0,"d":"0.00 zł"}}]
[null,"✔","Ubezpieczenie na życie, ubezpieczenie zdrowotne/wypadkowe i polisy ubezpieczeniowe",{"$nulls":11},{"$f":"'Aktywa spadkowe'!B52","v":"Plany emerytalne"},{"$nulls":7},{"$f":"'Aktywa spadkowe'!G60","v":{"v":0,"d":"0.00 zł"}},{"$nulls":3},{"$f":"'Zobowiązania spadkowe'!B51","v":"Inne zobowiązania"},{"$nulls":7},{"$f":"'Zobowiązania spadkowe'!G58","v":{"v":0,"d":"0.00 zł"}}]
[null,"✔","Sprawozdania finansowe",{"$nulls":11},{"$f":"'Aktywa spadkowe'!B62","v":"Ubezpieczenie"},{"$nulls":7},{"$f":"'Aktywa spadkowe'!G70","v":{"v":0,"d":"0.00 zł"}}]
[null,"✔","Zwroty z podatku dochodowego z ostatnich trzech lat",{"$nulls":11},{"$f":"'Aktywa spadkowe'!B72","v":"Prywatne pożyczki i hipoteki"},{"$nulls":7},{"$f":"'Aktywa spadkowe'!G80","v":{"v":0,"d":"0.00 zł"}}]
[null,"✔","Certyfikaty urodzenia i śmierci",{"$nulls":11},{"$f":"'Aktywa spadkowe'!B82","v":"Interesy w innych majątkach i trustach"},{"$nulls":7},{"$f":"'Aktywa spadkowe'!G90","v":{"v":0,"d":"0.00 zł"}}]
[null,"✖","Akty własności, hipoteki i wyciągi z najmu",{"$nulls":11},{"$f":"'Aktywa spadkowe'!B92","v":"Efekty osobiste i inne aktywy"},{"$nulls":7},{"$f":"'Aktywa spadkowe'!G100","v":{"v":0,"d":"0.00 zł"}}]
[null,"☐","Niezapłacone rachunki i noty",{"$nulls":11},"Łączna liczba aktywów",{"$nulls":7},{"$f":"'Aktywa spadkowe'!G10","v":{"v":0,"d":"0.00 zł"}},{"$nulls":3},"Łączna liczba zobowiązań",{"$nulls":7},{"$f":"SUM(AI36:AN44)","v":{"v":0,"d":"0.00 zł"}}]

{"sheet":"Aktywa spadkowe","index":1,"n_rows":100,"n_cols":8,"rows_kept":100,"merged":[[0,1,0,7],[1,1,5,7],[6,1,7,7],[11,1,11,7],[12,1,12,7],[21,1,21,7],[22,1,22,7],[31,1,31,7],[32,1,32,7],[41,1,41,7],[42,1,42,7],[51,1,51,7],[52,1,52,7],[61,1,61,7],[62,1,62,7],[71,1,71,7],[72,1,72,7],[81,1,81,7],[82,1,82,7],[91,1,91,7],[92,1,92,7]]}
[]
[null,"Aktywa spadkowe"]
[]
[]
[]
[]
[null,"Użyj tego arkusza, aby utworzyć spis aktywów spadkowych. Musisz określić wartość rynkową każdego zasobu majątku w dniu śmierci. Przejrzyj wszystkie zapisy, w tym sprawozdania finansowe, polisy ubezpieczeniowe i deklaracje podatkowe, aby uzyskać wartości rynkowe. Może być również konieczne uzyskanie oceny elementów osobistych (tj. prac sztuki, kolekcji, przedmiotów itp.). Pamiętaj, aby uwzględnić w spisie również wszelkie obce zasoby, takie jak nieruchomości, papiery wartościowe lub interesy biznesowe zamorskie. Możesz uzyskać profesjonalną pomoc w celu uzyskania dokładnej wartości rynkowej dla obcych zasobów."]
[]
[]
[null,"Suma aktywów",{"$nulls":4},{"$f":"tblBankAccounts[[#Totals],[Saldo ]]+tblPersonalInvestments[[#Totals],[Wartość rynkowa]]+tblBusinessInterests[[#Totals],[Wartość ]]+tblRealEstate[[#Totals],[Cena rynkowa]]+tblPensionPlans[[#Totals],[Wartość ]]+tblInsurance[[#Totals],[Wartość gotówkowa ]]+tblMortgages[[#Totals],[Saldo należne ]]+tblTrusts[[#Totals],[Kwota dystrybucji]]+tblOtherAssets[[#Totals],[Wartość ]]","v":{"v":0,"d":"0.00 zł"}}]
[]
[null,"Konta bankowe"]
[null,"Wyświetl listę wszystkich kont bankowych, w tym gotówki, czeków podróżnych, zleceń pieniężnych i kont w bankach komercyjnych, bankach oszczędnościowych, unii kredytowych itp. Uwzględnij wszystkie imiona i nazwiska wymienione na koncie oraz rzeczywistą wartość gotówki, która odnosi się do dokładnego dolara i zmiany kwoty w momencie śmierci."]
[null,"Instytucja finansowa ","Adres","Telefon","Numer konta","Typ konta","Saldo ","Notatki"]
[]
[]
[]
[]
[]
[null,"Suma",{"$nulls":4},{"$f":"SUBTOTAL(109,tblBankAccounts[[Saldo ]])","v":{"v":0,"d":"0.00 zł"}}]
[]
[null,"Inwestycje osobiste"]
[null,"Wyświetl listę kont gotówkowych, kont marży, bezpłatnych podatkowych kont oszczędnościowych, zarejestrowanych planów oszczędności na wycofanie (RRSP), zarejestrowanych funduszy dochodów z wycofania (RRIF), zablokowanych środków RRIF, zablokowanych planów RRSP, funduszy dochodów na życie, środków z tytułu określonych dochodów z wycofania, zarejestrowanych planów oszczędności edukacyjnych, rent itp."]
[null,"Firma","Adres","Telefon","Numer konta","Beneficjent","Wartość rynkowa","Notatki"]
[]
[]
[]
[]
[]
[null,"Suma",{"$nulls":4},{"$f":"SUBTOTAL(109,tblPersonalInvestments[Wartość rynkowa])","v":{"v":0,"d":"0.00 zł"}}]
[]
[null,"Interesy biznesowe"]
[null,"Wymień wszystkie interesy biznesowe, w tym jednoosobowe firmy, praktyki zawodowe, firmy, powiązania, firmy z ograniczoną odpowiedzialnością i powiązania, wspólne przedsiębiorstwa i inne niepubliczne podmioty biznesowe. "]
[null,"Nazwa firmy","Adres","Telefon","Kontakt","Typ","Wartość ","Notatki"]
[]
[]
[]
[]
[]
[null,"Suma",{"$nulls":4},{"$f":"SUBTOTAL(109,tblBusinessInterests[[Wartość ]])","v":{"v":0,"d":"0.00 zł"}}]
[]
[null,"Nieruchomości"]
[null,"Wymień wszystkie nieruchomości, na których zmarły małżonek/partner zmarłego i/lub pozostały przy życiu małżonek/partner zmarłego są właścicielami, współwłaścicielami lub mają jakikolwiek udział, w tym nieruchomości zakupione w obiektach rekreacyjnych i we współwłasności. Zdobądź kopie aktów. Podaj opis nieruchomości z adresem fizycznym. Wyświetl listę wartości rynkowej nieruchomości na podstawie najnowszej oceny przez asesora podatkowego."]
[null,"Adres","Tytuł posiadany przez","Telefon","Kontakt","Cena zakupu","Cena rynkowa","Notatki"]
[]
[]
[]
[]
[]
[null,"Suma",{"$nulls":3},{"$f":"SUBTOTAL(109,tblRealEstate[Cena zakupu])","v":{"v":0,"d":"0.00 zł"}},{"$f":"SUBTOTAL(109,tblRealEstate[Cena rynkowa])","v":{"v":0,"d":"0.00 zł"}}]
[]
[null,"Plany emerytalne"]
[null,"Wyświetl listę zdefiniowanych korzyści, zakupów pieniężnych lub zdefiniowanych wkładów, DPSP lub RRSP itp."]
[null,"Firma","Telefon","Typ planu","Beneficjent","E-mail","Wartość ","Notatki"]
[]
[]
[]
[]
[]
[null,"Suma",{"$nulls":4},{"$f":"SUBTOTAL(109,tblPensionPlans[[Wartość ]])","v":{"v":0,"d":"0.00 zł"}}]
[]
[null,"Ubezpieczenie"]
[null,"Uwzględnij żywe fundusze powiernicze, polisy ubezpieczeniowe na życie z nazwanymi beneficjentami i rachunki inwestycyjne, które zostały przeniesione w przypadku śmierci, jako aktywa niebędące spadkiem. Jeśli sąd zapyta o te aktywa, wykonawca testamentu może łatwo odnieść się do wykazu aktywów niebędących spadkiem i wyjaśnić ich brak w inwentarzu spadkowym."]
[null,"Emitenta","Numer polisy","Telefon","Beneficjent","Wartość nominalna ","Wartość gotówkowa ","Notatki"]
[]
[]
[]
[]
[]
[null,"Suma",{"$nulls":3},{"$f":"SUBTOTAL(109,tblInsurance[[Wartość nominalna ]])","v":{"v":0,"d":"0.00 zł"}},{"$f":"SUBTOTAL(109,tblInsurance[[Wartość gotówkowa ]])","v":{"v":0,"d":"0.00 zł"}}]
[]
[null,"Prywatne pożyczki i hipoteki"]
[null,"Wymień prywatne pożyczki i kredyty hipoteczne, w których osoba zmarła była pożyczkodawcą."]
[null,"Imię i nazwisko pożyczkobiorcy","Adres","Telefon","Typ","Oryginalna kwota","Saldo należne ","Notatki"]
[]
[]
[]
[]
[]
[null,"Suma",{"$nulls":3},{"$f":"SUBTOTAL(109,tblMortgages[Oryginalna kwota])","v":{"v":0,"d":"0.00 zł"}},{"$f":"SUBTOTAL(109,tblMortgages[[Saldo należne ]])","v":{"v":0,"d":"0.00 zł"}}]
[]
[null,"Interesy w innych majątkach i trustach"]
[null,"Wymień aktywa zarejestrowane na nazwisko osoby zmarłej przechowywane w imieniu innych osób (np. aktywa posiadane przez osobę zmarłą jako powiernik lub aktywa posiadane na podstawie pełnomocnictwa)."]
[null,"Nazwa majątku/trustu","Nazwa wykonawcy/zarządcy","Telefon","Adres","E-mail","Kwota dystrybucji","Notatki"]
[]
[]
[]
[]
[]
[null,"Suma",{"$nulls":4},{"$f":"SUBTOTAL(109,tblTrusts[Kwota dystrybucji])","v":{"v":0,"d":"0.00 zł"}}]
[]
[null,"Efekty osobiste i inne aktywy"]
[null,"Wymień na przykład wszystkie przedmioty osobiste; samochody, biżuteria, sztuka, antyki, meble. Uwzględnij elementy, które mogły być przechowywane w sejfie."]
[null,"Opis elementu","Lokalizacja","Telefon","Kontakt","Beneficjent","Wartość ","Notatki"]
[]
[]
[]
[]
[]
[null,"Suma",{"$nulls":4},{"$f":"SUBTOTAL(109,tblOtherAssets[[Wartość ]])","v":{"v":0,"d":"0.00 zł"}}]

{"sheet":"Zobowiązania spadkowe","index":2,"n_rows":58,"n_cols":8,"rows_kept":58,"merged":[[0,1,0,7],[1,1,5,7],[6,1,6,7],[10,1,10,7],[20,1,20,7],[30,1,30,7],[40,1,40,7],[50,1,50,7]]}
[]
[null,"Zobowiązania spadkowe"]
[]
[]
[]
[]
[null,"Użyj tego arkusza, aby uchwycić szczegóły zobowiązań spadkowych, zarówno krajowych, jak i zagranicznych. Wymagana będzie wycena każdego zobowiązania na dzień śmierci."]
[]
[null,"Suma aktywów",{"$nulls":4},{"$f":"SUM(G18,G28,G38,G48,G58)","v":{"v":0,"d":"0.00 zł"}}]
[]
[null,"Kredyty hipoteczne"]
[null,"Instytucja finansowa ","Adres","Telefon","Tytuł posiadany przez","Numer konta","Saldo ","Notatki"]
[]
[]
[]
[]
[]
[null,"Suma",{"$nulls":4},{"$f":"SUBTOTAL(109,tblBankAccounts2[[Saldo ]])","v":{"v":0,"d":"0.00 zł"}}]
[]
[]
[null,"Pożyczki osobiste i linie kredytowe"]
[null,"Instytucja finansowa","Adres","Telefon"," Numer konta","Typ","Saldo ","Notatki"]
[]
[]
[]
[]
[]
[null,"Suma",{"$nulls":4},{"$f":"SUBTOTAL(109,tblPersonalInvestments3[[Saldo ]])","v":{"v":0,"d":"0.00 zł"}}]
[]
[]
[null,"Interesy biznesowe"]
[null,"Nazwa firmy","Adres"," Telefon"," Kontakt","Typ","Wartość ","Notatki"]
[]
[]
[]
[]
[]
[null,"Suma",{"$nulls":4},{"$f":"SUBTOTAL(109,tblBusinessInterests4[[Wartość ]])","v":{"v":0,"d":"0.00 zł"}}]
[]
[]
[null,"Karty kredytowe"]
[null,"Wydawca karty kredytowej","Adres firmy","Telefon","Numer karty","Data wygaśnięcia ","Saldo ","Notatki"]
[]
[]
[]
[]
[]
[null,"Suma",{"$nulls":4},{"$f":"SUBTOTAL(109,tblRealEstate5[[Saldo ]])","v":{"v":0,"d":"0.00 zł"}}]
[]
[]
[null,"Inne zobowiązania"]
[null,"Opis elementu","Lokalizacja","Telefon","Kontakt","Beneficjent","Wartość ","Notatki"]
[]
[]
[]
[]
[]
[null,"Suma",{"$nulls":4},{"$f":"SUBTOTAL(109,tblPensionPlans6[[Wartość ]])","v":{"v":0,"d":"0.00 zł"}}]